Workbook

Sheet 资格复审合格人员名单
A1: 贵阳市国防动员办公室公开招聘所属事业单位工作人员资格复审结果及面试人员名单
A2: 01、02岗位
A3: 考号 | B3: 姓名 | C3: 单位及代码 | D3: 报考岗位及代码 | E3: 笔试成绩 | F3: 笔试成绩（百分制） | G3: 笔试成绩60% | H3: 笔试成绩排名 | I3: 是否进入资格复审 | J3: 是否通过资格复审 | K3: 是否进入面试 | L3: 备注
A4: 9110100100126 | B4: 吴思洪 | C4: 2024001贵阳市人防工程管理服务中心 | D4: 01综合协调员 | E4: 100.55 | F4: =ROUND(E4/1.5,2) -> 67.03 | G4: =ROUND(F4*0.6,2) -> 40.22 | H4: 1 | I4: 是 | J4: 是 | K4: 是
A5: 9110100100324 | B5: 苟廷梅 | C5: 2024001贵阳市人防工程管理服务中心 | D5: 01综合协调员 | E5: 91.1 | F5: =ROUND(E5/1.5,2) -> 60.73 | G5: =ROUND(F5*0.6,2) -> 36.44 | H5: 2 | I5: 是 | J5: 是 | K5: 是
A6: 9110100100216 | B6: 田俸欣 | C6: 2024001贵阳市人防工程管理服务中心 | D6: 01综合协调员 | E6: 87.3 | F6: =ROUND(E6/1.5,2) -> 58.2 | G6: =ROUND(F6*0.6,2) -> 34.92 | H6: 3 | I6: 是 | J6: 是 | K6: 是
A7: 9110100100111 | B7: 张志银 | C7: 2024001贵阳市人防工程管理服务中心 | D7: 02体检统筹工作人员 | E7: 106.05 | F7: =ROUND(E7/1.5,2) -> 70.7 | G7: =ROUND(F7*0.6,2) -> 42.42 | H7: 1 | I7: 是 | J7: 是 | K7: 是
A8: 9110100100215 | B8: 袁雄 | C8: 2024001贵阳市人防工程管理服务中心 | D8: 02体检统筹工作人员 | E8: 89.8 | F8: 59.87 | G8: 35.92 | H8: 2 | I8: 是 | J8: 自动放弃 | K8: 否
A9: 9110100100222 | B9: 王亚娇 | C9: 2024001贵阳市人防工程管理服务中心 | D9: 02体检统筹工作人员 | E9: 85.05 | F9: 56.7 | G9: 34.02 | H9: 3 | I9: 是 | J9: 自动放弃 | K9: 否
A10: 9110100100224 | B10: 郑林 | C10: 2024001贵阳市人防工程管理服务中心 | D10: 02体检统筹工作人员 | E10: 85.05 | F10: 56.7 | G10: 34.02 | H10: 3 | I10: 是 | J10: 自动放弃 | K10: 否
A11: 9110100100302 | B11: 石雪兵 | C11: 2024001贵阳市人防工程管理服务中心 | D11: 02体检统筹工作人员 | E11: 79 | F11: 52.67 | G11: 31.6 | H11: 5 | I11: 否 | J11: 自动放弃 | K11: 否 | L11: 第一轮递补
A12: 9110100100130 | B12: 段瑞雄 | C12: 2024001贵阳市人防工程管理服务中心 | D12: 02体检统筹工作人员 | E12: 78.7 | F12: 52.47 | G12: 31.48 | H12: 6 | I12: 否 | J12: 是 | K12: 是 | L12: 第一轮递补
A13: 9110100100315 | B13: 周涛 | C13: 2024001贵阳市人防工程管理服务中心 | D13: 02体检统筹工作人员 | E13: 78.3 | F13: 52.2 | G13: 31.32 | H13: 7 | I13: 否 | J13: 是 | K13: 是 | L13: 第二轮递补
A14: 03、04岗位
A15: 序号 | B15: 姓名 | C15: 单位及代码 | D15: 报考岗位及代码 | E15: 笔试成绩 | F15: 笔试成绩（百分制） | G15: 笔试成绩40% | H15: 军人贡献考核成绩（30分） | I15: 笔试成绩、军人贡献考核成绩总分 | J15: 笔试成绩、军人贡献考核成绩排名 | K15: 是否进入资格复审 | L15: 是否通过资格复审 | M15: 是否进入面试
A16: 9110100100114 | B16: 王金华 | C16: 2024001贵阳市人防工程管理服务中心 | D16: 03档案管理员 | E16: 90.35 | F16: =ROUND(E16/1.5,2) -> 60.23 | G16: =F16*0.4 -> 24.09 | H16: 20.5 | I16: =ROUND(H16+G16,2) -> 44.59 | J16: 1 | K16: 是 | L16: 是 | M16: 是
A17: 9110100100117 | B17: 贺莉 | C17: 2024001贵阳市人防工程管理服务中心 | D17: 03档案管理员 | E17: 78.25 | F17: 52.17 | G17: 20.87 | H17: 19 | I17: 39.87 | J17: 2 | K17: 是 | L17: 是 | M17: 是
A18: 9110100100101 | B18: 赵怡 | C18: 2024001贵阳市人防工程管理服务中心 | D18: 03档案管理员 | E18: 90.75 | F18: 60.50 | G18: 24.20 | H18: 15 | I18: 39.20 | J18: 3 | K18: 是 | L18: 是 | M18: 是
A19: 9110100100106 | B19: 李莉 | C19: 2024001贵阳市人防工程管理服务中心 | D19: 04内勤保障工作人员 | E19: 93.85 | F19: 62.57 | G19: 25.03 | H19: 25.5 | I19: 50.53 | J19: 1 | K19: 是 | L19: 是 | M19: 是
A20: 9110100100206 | B20: 黄菊青 | C20: 2024001贵阳市人防工程管理服务中心 | D20: 04内勤保障工作人员 | E20: 66.75 | F20: 44.50 | G20: 17.80 | H20: 16.5 | I20: 34.30 | J20: 2 | K20: 是 | L20: 是 | M20: 是
A21: 9110100100119 | B21: 姜丽娜 | C21: 2024001贵阳市人防工程管理服务中心 | D21: 04内勤保障工作人员 | E21: 85.6 | F21: 57.07 | G21: 22.83 | H21: 10.5 | I21: 33.33 | J21: 3 | K21: 是 | L21: 是 | M21: 是
